bitfinex-derivatives/quotes_ETHF0:USTF0_20240829
["timestamp","ask_amount","ask_price","bid_price","bid_amount"]
[1724916149566,4.38109321,2550.4,2550.3,1.09987]
[1724916150376,4.77304321,2550.4,2550.3,0.7079]
[1724916150566,4.77304321,2550.4,2550.2,1.10588]
[1724916150967,0.6942,2550.3,2549.9,3.2078]
[1724916151176,0.39201,2550.0,2549.9,3.2078]
[1724916151370,0.39201,2550.0,2549.9,44.0078]
[1724916151576,4.32589887,2550.0,2549.9,44.0078]
[1724916151782,0.39203,2549.9,2549.6,5.3072]
[1724916151979,1.09923,2549.9,2549.6,5.3072]
[1724916152172,0.6987,2549.8,2549.7,0.39206]
[1724916152375,4.96920818,2549.8,2549.7,41.19206]
[1724916153275,5.36125818,2549.8,2549.7,40.8]
[1724916153778,6.05525818,2549.8,2549.6,3.59987]
[1724916154873,6.05525818,2549.8,2549.6,0.39207]
[1724916155078,0.39208,2549.6,2549.5,41.5017]
[1724916155269,0.39208,2549.6,2549.5,41.89379]
[1724916155583,4.64776096,2549.6,2549.5,41.5017]
[1724916155773,4.64776096,2549.6,2549.5,41.89379]
[1724916156369,4.64776096,2549.6,2549.5,41.5017]
[1724916157276,4.25568096,2549.6,2549.5,41.89379]
[1724916157671,4.78233398,2549.7,2549.5,41.89379]
[1724916157867,0.39207,2549.7,2549.5,41.89379]
[1724916158073,0.39207,2549.7,2549.5,41.5017]
[1724916158269,4.39026398,2549.6,2549.5,41.5017]
[1724916158674,4.39026398,2549.6,2549.5,41.89379]
[1724916158881,4.39026398,2549.6,2549.5,41.5017]
[1724916160379,4.78234398,2549.6,2549.5,40.8]
[1724916160689,0.39208,2549.6,2549.5,40.8]
[1724916161186,4.23325723,2549.6,2549.5,40.8]
[1724916161378,4.23325723,2549.6,2549.5,41.19209]
[1724916162381,4.23325723,2549.6,2549.5,40.8]
[1724916162977,4.23325723,2549.6,2549.5,41.19209]
[1724916163486,4.23325723,2549.6,2549.5,0.39209]
[1724916163889,4.23325723,2549.6,2549.4,3.2078]
[1724916163890,4.62533723,2549.6,2549.4,3.5999]
[1724916164084,4.62533723,2549.6,2549.5,0.39209]
[1724916164284,0.39208,2549.6,2549.5,0.39209]
[1724916164485,4.12025909,2549.6,2549.5,0.39209]
[1724916165184,4.51233909,2549.6,2549.4,44.3999]
[1724916165583,0.39208,2549.6,2549.4,44.3999]
[1724916165981,4.54356413,2549.5,2549.4,44.3999]
[1724916166889,4.93565413,2549.5,2549.4,44.0078]
[1724916167188,0.39209,2549.6,2549.4,44.0078]
[1724916167579,4.33035648,2549.5,2549.4,44.0078]
[1724916167781,0.39209,2549.6,2549.4,44.0078]
[1724916167983,0.39209,2549.6,2549.4,44.39991]
[1724916168176,4.98695648,2549.5,2549.4,44.39991]
[1724916168380,0.39211,2549.4,2549.2,0.39213]
[1724916168590,1.74872,2549.4,2549.2,0.39214]
[1724916168884,4.28760008,2549.3,2549.2,41.19214]
[1724916170079,4.28760008,2549.3,2549.2,45.11454]
[1724916170277,4.28760008,2549.3,2549.2,45.53228551]
[1724916172184,4.28760008,2549.3,2549.2,45.53229433]
[1724916173287,4.28760008,2549.3,2549.2,41.60989433]
[1724916174690,4.28760008,2549.3,2549.2,41.60989297]
[1724916178093,4.28760008,2549.3,2549.2,41.19214]
[1724916178295,4.28760008,2549.3,2549.2,41.60988688]
[1724916179290,4.28760008,2549.3,2549.2,41.19214]
[1724916179598,4.28760008,2549.3,2549.2,41.60989143]
[1724916180291,4.28760008,2549.3,2549.2,41.19214]
[1724916180789,4.28760008,2549.3,2549.2,41.6098908]
[1724916181389,4.31452,2549.3,2549.1,3.2078]
[1724916181582,4.31452,2549.3,2549.0,0.39216]
[1724916181583,1.3409,2549.2,2549.0,0.39216]
[1724916181782,0.6846,2549.1,2549.0,0.39216]
[1724916182184,10.54284166,2549.1,2548.7,1.02532625]
[1724916182384,1.41,2548.8,2548.2,2.95714133]
[1724916182588,1.41,2548.4,2548.2,0.39228]
[1724916182797,0.6846,2548.3,2548.2,41.19228]
[1724916183097,4.56461141,2548.3,2548.2,41.19228]
[1724916185701,4.95689141,2548.3,2548.0,4.46950005]
[1724916186199,4.95689141,2548.3,2548.1,41.19231]
[1724916186200,4.56461141,2548.3,2548.1,41.19231]
[1724916186390,4.95689141,2548.3,2548.1,40.8]
[1724916187194,4.56461141,2548.3,2548.1,40.8]
[1724916187502,4.95689141,2548.3,2548.1,40.8]
[1724916187701,4.95689141,2548.3,2548.0,3.2078]
[1724916187901,1.3811,2548.2,2548.0,3.2078]
[1724916188398,1.3811,2548.2,2548.0,3.60012]
[1724916190697,0.6846,2548.3,2548.2,0.39229]
[1724916190901,0.6846,2548.3,2548.1,0.3923]
[1724916191097,4.30692048,2548.2,2548.1,0.3923]
[1724916191302,4.99152048,2548.3,2548.1,0.3923]
[1724916191497,0.6846,2548.3,2548.1,0.3923]
[1724916191691,4.3786891,2548.2,2548.1,0.3923]
[1724916194799,4.7709791,2548.2,2547.9,0.39233]
[1724916195004,0.6472,2548.1,2547.8,3.2078]
[1724916195204,0.6472,2548.1,2547.8,4.6178]
[1724916195594,0.6472,2548.1,2548.0,0.39232]
[1724916195800,4.3786891,2548.2,2548.1,0.39231]
[1724916195999,0.00588016,2548.3,2548.2,0.39229]
[1724916196202,0.00588016,2548.3,2548.2,43.58303]
[1724916196401,1.63175685,2548.6,2548.5,0.39225]
[1724916196702,3.2078,2548.9,2548.8,0.3922]
[1724916196901,1.3028,2549.0,2548.9,0.39218]
[1724916197102,0.6513,2549.0,2548.9,0.39218]
[1724916197303,4.98598113,2549.0,2548.9,1.80218]
[1724916197699,4.98598113,2549.0,2548.9,42.60218]
[1724916198399,4.98598113,2549.0,2548.9,40.8]
[1724916198700,4.98598113,2549.0,2548.8,3.2078]
[1724916199002,0.6306,2548.9,2548.8,3.2078]
[1724916199197,0.6306,2548.9,2548.8,3.6]
[1724916199399,4.91271425,2548.9,2548.8,3.6]
[1724916200099,4.28211425,2548.9,2548.8,3.6]
[1724916201905,4.28211425,2548.9,2548.8,3.2078]
[1724916203307,4.28211425,2548.9,2548.8,3.6]
[1724916203512,4.28211425,2548.9,2548.8,6.99]
[1724916203717,4.28211425,2548.9,2548.8,7.6101]
[1724916206612,4.28211425,2548.9,2548.8,3.2078]
[1724916207115,4.28211425,2548.9,2548.8,3.6]
[1724916207406,4.28211425,2548.9,2548.8,3.2078]
[1724916209004,4.28211425,2548.9,2548.8,0.3922]
[1724916209307,4.28211425,2548.9,2548.7,44.40589016]
[1724916209506,0.6684,2548.8,2548.7,41.19809016]
[1724916210008,5.10328136,2548.8,2548.7,41.19809016]
[1724916211413,5.10328136,2548.8,2548.7,0.39809016]
[1724916217108,5.10328136,2548.8,2548.7,0.00588016]
[1724916217309,0.39228,2548.3,2548.2,0.01]
[1724916217515,0.39235,2547.9,2547.6,4.23312625]
[1724916217716,0.39235,2547.9,2547.6,3.2078]
[1724916218018,0.39235,2547.9,2547.6,3.60018]
[1724916218223,2.88955685,2548.2,2547.8,0.39234]
[1724916218522,4.34915641,2548.1,2547.6,3.2078]
[1724916218706,4.34915641,2548.1,2547.9,0.39233]
[1724916218911,4.34915641,2548.1,2548.0,0.39232]
[1724916221317,2.88955685,2548.2,2548.1,0.39231]
[1724916221518,1.63175685,2548.2,2548.1,0.39231]
[1724916221922,0.6146,2548.3,2548.2,0.39229]
[1724916222337,1.63175685,2548.6,2548.5,0.39225]
[1724916224826,2.26545685,2548.6,2548.5,0.39225]
[1724916226427,2.26545685,2548.6,2548.2,4.42226062]
[1724916226629,6.62251806,2548.6,2548.5,0.39225]
[1724916227015,6.62251806,2548.6,2548.5,41.19225]
[1724916227826,4.99076121,2548.6,2548.5,41.19225]
[1724916235423,8.91476121,2548.6,2548.5,0.39225]
[1724916236738,8.91476121,2548.6,2548.2,1.02532625]
[1724916236739,0.39228,2548.3,2548.2,1.02532625]
[1724916236937,0.39228,2548.3,2548.1,40.8]
[1724916237239,1.9647,2548.2,2548.1,41.19231]
[1724916237631,6.42624395,2548.2,2548.1,41.19231]
[1724916237936,10.35104395,2548.2,2548.1,41.19231]
[1724916238137,10.74333395,2548.2,2548.1,41.19231]
[1724916238346,10.35104395,2548.2,2548.1,41.19231]
[1724916238930,10.74333395,2548.2,2548.1,40.8]
[1724916239441,11.72407395,2548.2,2548.1,40.8]
[1724916239642,11.72407395,2548.2,2547.9,0.39233]
[1724916239643,0.39231,2548.1,2548.0,0.39231]
[1724916239834,0.39231,2548.1,2547.8,1.02532625]
[1724916239835,6.42624395,2548.2,2548.1,0.39231]
[1724916240031,1.3091,2548.2,2548.1,41.19231]
[1724916240345,1.63175685,2548.6,2548.5,0.39225]
[1724916240835,6.09083528,2548.6,2548.5,0.39225]
[1724916241044,6.09083528,2548.6,2548.5,0.81011404]
[1724916242442,6.09083528,2548.6,2548.5,0.41786404]
[1724916242841,6.09083528,2548.6,2548.5,0.81011404]
[1724916243045,6.09083528,2548.6,2548.5,0.81012186]
[1724916243541,6.09083528,2548.6,2548.5,0.41787139]
[1724916243746,6.09083528,2548.6,2548.3,3.60006]
[1724916244043,6.09083528,2548.6,2548.5,0.39225]
[1724916244244,6.09083528,2548.6,2548.5,0.4178675]
[1724916244640,6.09083528,2548.6,2548.5,0.8101175]
[1724916245648,4.45907843,2548.6,2548.5,0.8101175]
[1724916246048,4.14576049,2548.7,2548.5,0.8101175]
[1724916246249,4.14576049,2548.7,2548.2,4.0333]
[1724916246250,1.66401,2548.8,2548.4,0.39225]
[1724916246451,1.66401,2548.8,2548.5,0.41786758]
[1724916246748,4.49354173,2548.7,2548.4,0.39225]
[1724916246948,4.49354173,2548.7,2548.5,0.41787037]
[1724916247152,4.10132173,2548.7,2548.5,0.39224]
[1724916247349,4.10132173,2548.7,2548.2,4.0333]
[1724916247350,4.10132173,2548.7,2548.6,0.39223]
[1724916248049,4.10132173,2548.7,2548.6,0.81008961]
[1724916248242,0.39227,2548.4,2548.1,41.1923]
[1724916248444,0.6729,2548.3,2548.1,41.1923]
[1724916248746,4.8075881,2548.3,2548.1,41.1923]
[1724916248939,4.8075881,2548.3,2548.2,0.39229]
[1724916249546,4.8075881,2548.3,2548.2,1.00969]
[1724916249950,0.6729,2548.3,2548.2,4.93369]
[1724916250256,1.67434,2548.6,2548.3,0.39227]
[1724916250642,4.36793091,2548.5,2548.3,0.39227]
[1724916251263,4.76018091,2548.5,2548.3,0.39227]
[1724916251554,5.03143091,2548.5,2548.4,0.39226]
[1724916252371,5.03143091,2548.5,2548.3,0.39227]
[1724916252654,5.42368091,2548.5,2548.3,0.39227]
[1724916252850,5.42368091,2548.5,2548.3,0.39228]
[1724916254047,0.39228,2548.4,2548.2,1.00969]
[1724916254248,0.39228,2548.4,2548.3,0.39228]
[1724916254450,0.39228,2548.4,2548.2,1.00968]
[1724916256558,10.42044957,2548.5,2548.1,42.21885243]
[1724916256859,10.42044957,2548.5,2548.0,1.41886243]
[1724916256860,0.3923,2548.2,2548.0,1.41886243]
[1724916257255,4.12926766,2548.1,2548.0,42.21886243]
[1724916257460,4.52157766,2548.1,2548.0,40.8]
[1724916257657,4.12926766,2548.1,2548.0,41.19232]
[1724916257852,4.52157766,2548.1,2548.0,40.8]
[1724916258352,5.17347766,2548.1,2548.0,40.8]
[1724916258652,4.78116766,2548.1,2548.0,41.19232]
[1724916260158,4.78116766,2548.1,2548.0,40.59633322]
[1724916260358,4.90561,2548.0,2547.5,1.02737575]
[1724916260663,3.78238,2547.7,2547.5,0.39239]
[1724916261063,4.23858932,2547.6,2547.4,1.41978575]
[1724916261363,4.23858932,2547.6,2547.5,41.1924]
[1724916261867,4.23858932,2547.6,2547.5,41.806]
[1724916262158,4.23858932,2547.6,2547.5,41.4136]
[1724916264862,0.39242,2547.4,2547.0,0.39247]
[1724916265069,0.5941,2547.3,2547.1,1.04876]
[1724916265259,0.5941,2547.3,2547.2,0.39245]
[1724916265260,4.81406796,2547.3,2547.2,0.39245]
[1724916265563,4.81406796,2547.3,2547.1,1.2664]
[1724916265564,4.81406796,2547.3,2547.1,1.65885]
[1724916265967,4.81406796,2547.3,2547.2,3.2078]
[1724916267451,4.81406796,2547.3,2547.1,1.65885]
[1724916267657,4.81406796,2547.3,2547.1,1.2664]
[1724916267866,5.20649796,2547.3,2547.0,41.19247]
[1724916268464,4.81406796,2547.3,2547.1,0.39246]
[1724916268767,5.20649796,2547.3,2547.0,41.19247]
[1724916269161,5.20649796,2547.3,2547.1,0.39246]
[1724916269361,5.20649796,2547.3,2547.0,41.19247]
[1724916270259,4.21996796,2547.3,2547.1,0.39246]
[1724916270455,4.21996796,2547.3,2547.2,3.60025]
[1724916270660,4.21996796,2547.3,2547.2,0.39245]
[1724916270863,4.31804,2547.3,2546.9,4.03898415]
[1724916271064,4.31804,2547.3,2547.0,0.39247]
[1724916271065,0.39244,2547.3,2547.0,0.39247]
[1724916271263,0.39257,2546.4,2546.3,1.02737575]
[1724916271464,0.39257,2546.4,2546.1,3.60041]
[1724916271764,4.61887371,2546.4,2546.2,0.5944]
[1724916271967,4.22629371,2546.4,2546.3,0.39258]
[1724916272270,0.39257,2546.4,2546.3,0.6469]
[1724916272565,4.49386584,2546.4,2546.1,3.60041]
[1724916272760,4.49387584,2546.4,2546.1,3.2078]
[1724916272959,4.10129584,2546.4,2546.3,1.37405]
[1724916273168,0.00588016,2546.6,2546.5,2.35533]
[1724916273366,3.60021,2547.5,2547.2,0.39244]
[1724916273661,5.16818507,2547.4,2547.3,40.8]
[1724916274660,4.54218507,2547.4,2547.3,41.19243]
[1724916275069,4.54218507,2547.4,2547.3,40.8]
[1724916275262,4.54218507,2547.4,2547.3,41.19243]
[1724916275566,4.54218507,2547.4,2547.3,40.8]
[1724916275864,4.54218507,2547.4,2547.2,0.6348]
[1724916276268,4.54218507,2547.4,2547.2,41.4348]
[1724916276667,8.46778507,2547.4,2547.2,40.8]
[1724916276865,0.39243,2547.3,2547.2,40.8]
[1724916277266,8.70323238,2547.3,2547.2,40.8]
[1724916277467,8.31080238,2547.3,2547.2,40.8]
[1724916277669,8.31080238,2547.3,2547.2,41.19245]
[1724916277972,8.31080238,2547.3,2547.2,40.8]
[1724916278167,8.70323238,2547.3,2547.2,40.8]
[1724916278571,0.39245,2547.2,2547.1,0.00588016]
[1724916278964,4.6552558,2547.2,2547.1,0.00588016]
[1724916279563,4.2628058,2547.2,2547.1,0.00588016]
[1724916279766,4.2628058,2547.2,2547.1,0.39834016]
[1724916279975,4.26678604,2547.3,2547.1,0.39834016]
[1724916280171,0.39244,2547.3,2547.1,0.39834016]
[1724916280368,0.39244,2547.3,2547.1,0.00588016]
[1724916280670,4.65922604,2547.3,2547.1,0.00588016]
[1724916281268,0.39245,2547.2,2547.1,0.00588016]
[1724916281463,4.26678604,2547.3,2547.1,0.00588016]
[1724916281665,0.6598,2547.4,2547.2,0.39243]
[1724916281880,3.8069,2547.5,2547.4,0.39241]
[1724916282391,7.96812537,2547.5,2547.4,0.39241]
[1724916283271,7.96812537,2547.5,2547.3,1.72402]
[1724916283773,7.96812537,2547.5,2547.4,0.39241]
[1724916283965,7.96812537,2547.5,2547.3,1.72402]
[1724916284870,7.96812537,2547.5,2547.4,0.39241]
[1724916285271,4.16122537,2547.5,2547.4,0.39241]
[1724916290082,4.16122537,2547.5,2547.4,1.37345]
[1724916290476,0.00588016,2547.6,2547.5,1.37341]
[1724916290782,1.52977455,2548.4,2547.5,1.37341]
[1724916290783,3.2078,2548.5,2547.5,13.3156]
[1724916290977,0.5986,2548.4,2548.3,0.39228]
[1724916291278,4.69016425,2548.4,2548.3,0.39228]
[1724916295380,4.69016425,2548.4,2548.2,41.19229]
[1724916295581,4.69016425,2548.4,2548.3,0.39228]
[1724916295881,4.69016425,2548.4,2548.1,2.2878]
[1724916296273,4.69016425,2548.4,2548.2,0.39229]
[1724916296474,4.69016425,2548.4,2548.3,0.39228]
[1724916297685,4.69016425,2548.4,2548.2,0.39228]
[1724916298086,4.69016425,2548.4,2548.1,1.8955]
[1724916298286,4.69016425,2548.4,2548.2,0.39229]
[1724916299780,4.69016425,2548.4,2548.3,0.39228]
[1724916299982,4.09156425,2548.4,2548.3,0.39228]
[1724916300383,4.09156425,2548.4,2548.3,3.60008]
[1724916300585,4.09156425,2548.4,2548.3,14.50478]
[1724916300876,2.02383685,2549.6,2549.2,0.39213]
[1724916301072,0.5938,2549.5,2549.2,0.39213]
[1724916301272,4.30831503,2549.4,2549.3,0.39212]
[1724916301479,5.29420503,2549.5,2549.1,0.39214]
[1724916301674,0.98589,2549.5,2549.1,0.39214]
[1724916301875,0.39215,2549.2,2549.0,0.00588016]
[1724916302070,0.5965,2549.1,2549.0,0.00588016]
[1724916302476,9.17965995,2549.1,2549.0,0.00588016]
[1724916302677,8.78750995,2549.1,2548.4,3.8511]
[1724916302877,0.3922,2548.8,2548.4,4.24336]
[1724916303084,0.39221,2548.8,2548.4,45.04336]
[1724916303381,4.15479191,2548.7,2548.4,45.04336]
[1724916303579,4.15479191,2548.7,2548.4,44.6511]
[1724916303580,0.5965,2548.6,2548.4,44.6511]
[1724916304084,0.6444,2548.5,2548.4,44.6511]
[1724916304479,4.93923642,2548.5,2548.4,3.2078]
[1724916304890,4.93923642,2548.5,2548.2,0.39816016]
[1724916304891,4.93923642,2548.5,2548.2,0.00588016]
[1724916305178,4.93923642,2548.5,2548.3,0.39228]
[1724916305374,4.93923642,2548.5,2548.2,41.19816016]
[1724916306389,0.39227,2548.4,2548.2,0.00588016]
[1724916306586,5.33148642,2548.5,2548.2,0.39817016]
[1724916306778,4.2321943,2548.3,2548.2,0.39817016]
[1724916306980,4.2321943,2548.4,2548.2,0.39817016]
[1724916307484,0.6444,2548.5,2548.2,0.00588016]
[1724916307698,4.6244543,2548.4,2548.2,0.00588016]
[1724916307888,4.2321943,2548.4,2548.2,0.00588016]
[1724916308192,4.6244643,2548.4,2548.2,0.00588016]
[1724916308397,4.31628,2548.3,2548.2,0.00588016]
[1724916308786,8.57288494,2548.3,2548.2,0.00588016]
[1724916309593,8.18060494,2548.3,2548.2,0.00588016]
[1724916309895,8.57288494,2548.3,2548.2,0.00588016]
[1724916311781,8.18060494,2548.3,2548.2,0.39817016]
[1724916312184,4.25660494,2548.3,2548.2,0.39817016]
[1724916312589,4.25660494,2548.3,2548.2,0.00588016]
[1724916312785,4.25660494,2548.3,2548.2,0.39817016]
[1724916313389,4.13154514,2548.4,2548.3,0.39227]
[1724916313595,3.8522,2548.5,2548.3,0.39227]
[1724916313988,4.46666135,2548.4,2548.3,0.39227]
[1724916314392,4.46666135,2548.4,2548.2,0.39817016]
[1724916314890,4.46666135,2548.4,2548.3,0.39228]
[1724916317587,0.39228,2548.3,2548.2,0.00588016]
[1724916317783,4.85893135,2548.4,2548.2,0.00588016]
[1724916318197,4.85893135,2548.4,2548.2,0.39817016]
[1724916319200,0.39228,2548.3,2548.2,0.39817016]
[1724916319395,0.39228,2548.3,2548.2,0.00588016]
[1724916319605,4.79186249,2548.3,2548.2,0.00588016]
[1724916321095,4.79186249,2548.3,2548.2,0.39817016]
[1724916321296,4.39958249,2548.3,2548.2,0.39817016]
[1724916321696,4.91136217,2548.4,2548.2,0.39817016]
[1724916321896,0.39227,2548.4,2548.2,0.39817016]
[1724916322301,4.72754338,2548.3,2548.2,0.39817016]
[1724916322504,4.72754338,2548.3,2548.2,0.00588016]
[1724916322704,0.39228,2548.3,2548.2,0.00588016]
[1724916323002,4.73449742,2548.3,2548.2,0.00588016]
[1724916323403,8.65849742,2548.3,2548.2,0.00588016]
[1724916325101,9.63919742,2548.3,2548.2,0.00588016]
[1724916325904,8.26621742,2548.3,2548.2,0.00588016]
[1724916326100,4.34221742,2548.3,2548.2,0.39817016]
[1724916326607,4.24445,2548.5,2548.4,0.39226]
[1724916327107,8.37900924,2548.5,2548.4,0.39226]
[1724916327509,4.52680924,2548.5,2548.4,1.01276]
[1724916327898,4.1926,2548.8,2548.6,0.39222]
[1724916328204,4.15021149,2548.7,2548.6,0.39222]
[1724916328403,4.19261,2548.8,2548.5,0.39224]
[1724916328595,4.52353253,2548.7,2548.5,0.39224]
[1724916328791,4.91574253,2548.7,2548.5,0.39224]
[1724916328992,4.52353253,2548.7,2548.5,0.39224]
[1724916329196,4.91575253,2548.7,2548.5,0.39224]
[1724916329709,4.52353253,2548.7,2548.3,0.5984]
[1724916329907,6.11285243,2548.7,2548.3,0.5984]
[1724916330103,6.11285243,2548.7,2548.3,0.99068]
[1724916330304,0.39224,2548.6,2548.4,0.39226]
[1724916330499,0.39225,2548.5,2548.3,0.99067]
[1724916330700,4.58091079,2548.5,2548.3,0.99067]
[1724916330901,0.5959,2548.4,2548.3,0.99067]
[1724916332303,0.5959,2548.4,2548.2,0.00588016]
[1724916332607,0.39228,2548.3,2548.2,0.00588016]
[1724916333208,0.39228,2548.3,2548.2,3.92988016]
[1724916333401,2.2318199,2548.4,2548.2,3.92988016]
[1724916333402,2.6240899,2548.4,2548.2,4.32216016]
[1724916333705,2.6240899,2548.4,2548.2,0.39816016]
[1724916333706,0.98817,2548.4,2548.2,0.39816016]
[1724916334205,2.0071899,2548.4,2548.2,0.39816016]
[1724916336507,1.4112999,2548.3,2548.2,0.00588016]
[1724916336709,1.4112999,2548.3,2548.2,0.39817016]
[1724916337711,5.68905813,2548.3,2548.2,0.39817016]
[1724916338009,5.68905813,2548.3,2548.2,0.00588016]
[1724916338211,7.23085813,2548.3,2548.2,0.00588016]
[1724916338517,6.21183823,2548.3,2548.2,0.00588016]
[1724916338815,6.76091278,2548.3,2548.2,0.00588016]
[1724916339204,7.74161278,2548.3,2548.2,0.00588016]
[1724916340513,10.13583823,2548.3,2548.2,0.00588016]
[1724916342419,11.66804796,2548.3,2548.2,0.00588016]
[1724916342709,0.9808,2548.1,2547.7,41.82332646]
[1724916342907,0.39235,2547.8,2547.7,40.8]
[1724916343520,0.39235,2547.8,2547.7,41.19237]
[1724916343904,0.39234,2547.9,2547.7,41.19237]
[1724916344508,0.39235,2547.8,2547.7,41.19237]
[1724916345004,0.39235,2547.9,2547.7,41.19237]
[1724916345311,0.39234,2547.9,2547.7,40.8]
[1724916345615,5.56798113,2548.0,2547.7,41.19236]
[1724916345809,0.39235,2547.8,2547.7,41.19236]
[1724916346315,0.39235,2547.8,2547.7,40.8]
[1724916347617,0.39237,2547.7,2547.6,4.23112646]
[1724916347818,0.39237,2547.7,2547.6,3.2078]
[1724916348014,4.53116913,2547.7,2547.5,2.57569662]
[1724916348213,4.53116913,2547.7,2547.6,40.8]
[1724916348412,4.53116913,2547.7,2547.6,41.82332646]
[1724916349521,4.53116913,2547.7,2547.6,40.8]
[1724916351424,0.39238,2547.6,2547.5,2.57570662]
[1724916351625,4.53117913,2547.7,2547.5,2.57570662]
[1724916351925,4.53117913,2547.7,2547.5,43.37570662]
[1724916353828,4.53117913,2547.7,2547.5,1.15998016]
[1724916353829,0.39238,2547.6,2547.5,1.15998016]
[1724916354129,4.63539557,2547.6,2547.5,1.15998016]
[1724916354317,4.63539557,2547.6,2547.5,1.55238016]
[1724916354519,4.24301557,2547.6,2547.5,1.55238016]
[1724916355720,4.24301557,2547.6,2547.5,1.15998016]
[1724916355928,4.24301557,2547.6,2547.5,1.55238016]
[1724916356124,0.39238,2547.6,2547.5,1.55238016]
[1724916356517,4.10436652,2547.6,2547.5,1.55238016]
[1724916357023,4.56022981,2547.7,2547.5,1.55238016]
[1724916357228,0.39238,2547.7,2547.5,1.55238016]
[1724916357437,4.56022981,2547.6,2547.5,1.55238016]
[1724916357722,0.95388,2547.6,2547.5,1.15998016]
[1724916358228,5.43417724,2547.6,2547.5,1.15998016]
[1724916359028,5.43417724,2547.6,2547.5,1.55238016]
[1724916359526,5.43417724,2547.6,2547.5,1.15998016]
[1724916361330,6.41514724,2547.6,2547.5,1.15998016]
[1724916363124,6.41514724,2547.6,2547.5,0.00588016]
[1724916363430,9.62294724,2547.6,2547.5,0.00588016]
[1724916363628,10.6445249,2547.6,2547.5,0.00588016]
[1724916364022,14.5701249,2547.6,2547.5,0.00588016]
[1724916364222,16.63968373,2547.6,2547.5,0.00588016]
[1724916365427,17.65925135,2547.6,2547.5,0.00588016]
[1724916365635,16.63968373,2547.6,2547.5,0.00588016]
[1724916367030,1.37351,2547.3,2547.2,40.8]
[1724916367418,5.64942552,2547.3,2547.2,40.8]
[1724916367719,0.3925,2546.9,2546.5,5.64112646]
[1724916367923,0.3925,2546.9,2546.8,0.5882]
[1724916368125,0.3925,2546.9,2546.8,41.3882]
[1724916368432,0.39252,2546.7,2546.6,1.1807]
[1724916368628,0.39252,2546.7,2546.6,2.16044]
[1724916368929,4.45843503,2546.7,2546.6,42.96044]
[1724916370025,4.85095503,2546.7,2546.6,42.96044]
[1724916370525,4.45843503,2546.7,2546.6,42.96044]
[1724916370727,9.79483503,2546.7,2546.6,39.31824]
[1724916371034,9.79483503,2546.7,2546.1,1.53498969]
[1724916371035,0.39263,2546.0,2545.8,0.39265]
[1724916371228,0.00589183,2546.2,2545.7,3.2078]
[1724916371424,4.11019961,2545.9,2545.7,4.9667]
[1724916371631,4.11019961,2545.9,2545.8,1.80266]
[1724916371823,0.00589183,2546.2,2546.1,0.39262]
[1724916372127,0.00589183,2546.2,2546.1,4.31982]
[1724916372330,0.00589183,2546.2,2546.1,4.90102]
[1724916373731,0.00589183,2546.2,2546.1,5.51602]
[1724916377734,0.00589183,2546.2,2546.1,46.31602]
[1724916377935,0.00589183,2546.2,2546.1,5.51602]
[1724916378440,4.19501,2546.8,2546.5,0.39254]
[1724916378632,3.2078,2546.8,2546.6,1.61274]
[1724916378835,4.17512532,2546.7,2546.6,1.61274]
[1724916381029,4.17512532,2546.7,2546.6,1.2202]
[1724916381737,4.17512532,2546.7,2546.6,1.8067]
[1724916382243,4.17512532,2546.7,2546.6,2.19924]
[1724916383143,4.17512532,2546.7,2546.6,1.8067]
[1724916383543,4.17512532,2546.7,2546.6,2.19924]
[1724916383937,3.2078,2546.8,2546.6,1.8067]
[1724916384137,3.2078,2546.8,2546.6,2.19923]
[1724916384342,3.60032,2546.8,2546.6,1.8067]
[1724916384539,0.39252,2546.7,2546.6,1.8067]
[1724916384739,0.39252,2546.7,2546.6,42.6067]
[1724916385144,3.60032,2546.8,2546.6,42.6067]
[1724916386945,0.39252,2546.7,2546.6,42.6067]
[1724916387253,0.39252,2546.7,2546.6,1.8067]
[1724916387950,0.97062,2546.7,2546.6,1.8067]
[1724916388141,2.38062,2546.7,2546.6,1.8067]
[1724916388341,0.39252,2546.7,2546.6,1.2074]
[1724916391349,6.18498949,2546.7,2546.6,1.2074]
[1724916391949,0.39255,2546.5,2546.4,0.39846183]
[1724916392251,4.78937721,2546.5,2546.4,0.00589183]
[1724916392447,0.39262,2546.1,2546.0,0.6252]
[1724916392850,4.78944721,2546.1,2546.0,0.6252]
[1724916393043,0.39265,2545.9,2545.8,40.8]
[1724916393648,3.60045,2545.9,2545.8,40.8]
[1724916393853,0.39265,2545.9,2545.8,40.8]
[1724916394056,0.39265,2545.9,2545.8,40.99112773]
[1724916394249,0.39265,2545.9,2545.7,1.7619]
[1724916394446,1.80264,2546.0,2545.7,1.7619]
[1724916394651,0.99892,2546.1,2545.7,2.15458]
[1724916394964,4.29466849,2545.9,2545.7,42.95458]
[1724916395158,4.48071268,2546.0,2545.7,42.95458]
[1724916395356,0.99892,2546.1,2545.7,42.95458]
[1724916395764,4.48071268,2546.0,2545.7,42.95458]
[1724916396347,4.87334268,2546.0,2545.7,40.8]
[1724916396553,4.48071268,2546.0,2545.7,0.5762]
[1724916397361,4.87334268,2546.0,2545.7,0.5762]
[1724916397658,4.48071268,2546.0,2545.8,3.2078]
[1724916397857,8.5458,2545.9,2545.3,4.23112646]
[1724916398058,1.80267,2545.8,2545.5,0.5762]
[1724916398262,5.50077142,2545.8,2545.5,0.96891]
[1724916398451,4.09077142,2545.8,2545.5,0.5762]
[1724916398757,4.09077142,2545.8,2545.7,0.39268]
[1724916399261,4.09077142,2545.8,2545.6,0.39269]
[1724916399459,4.09077142,2545.8,2545.7,0.39268]
[1724916400156,3.2078,2545.9,2545.7,0.39268]
[1724916400958,3.60045,2545.9,2545.6,0.39269]
[1724916401161,3.2078,2545.9,2545.6,0.39269]
[1724916401362,3.2078,2545.9,2545.7,0.39268]
[1724916403162,3.60045,2545.9,2545.6,1.00758]
[1724916403558,3.2078,2545.9,2545.7,0.39268]
[1724916404069,0.39261,2546.2,2545.8,0.39266]
[1724916404363,5.01038,2546.4,2546.1,0.39262]
[1724916404661,2.64969128,2546.6,2546.1,0.39262]
[1724916404662,4.31336693,2546.2,2546.1,0.39262]
[1724916404961,0.39256,2546.5,2546.2,0.9588]